bitfinex-derivatives/quotes_BTCF0:USTF0_20230702
["timestamp","ask_amount","ask_price","bid_price","bid_amount"]
[1688311863047,0.03854845,30458.0,30457.0,0.3664]
[1688311864156,0.05677814,30458.0,30457.0,0.3467]
[1688311864385,0.41757814,30458.0,30454.0,0.365702]
[1688311864556,0.01884945,30457.0,30454.0,0.365702]
[1688311864759,0.3608,30455.0,30454.0,0.365702]
[1688311865062,0.39935045,30455.0,30454.0,0.365702]
[1688311865258,0.41758014,30455.0,30454.0,0.365702]
[1688311865459,0.39935045,30455.0,30454.0,0.36895716]
[1688311865856,0.019701,30455.0,30454.0,0.38780661]
[1688311866083,0.059103,30456.0,30455.0,0.039402]
[1688311866253,0.059103,30456.0,30455.0,0.42465245]
[1688311866571,0.049252,30457.0,30455.0,0.44654409]
[1688311866758,0.049252,30457.0,30456.0,0.01884945]
[1688311866951,0.049252,30457.0,30456.0,0.05677914]
[1688311867360,0.049252,30457.0,30455.0,0.38976395]
[1688311867361,0.06810145,30457.0,30455.0,0.38976395]
[1688311867556,0.049252,30457.0,30455.0,0.4086134]
[1688311867753,0.049252,30457.0,30455.0,0.38976395]
[1688311868061,0.049252,30457.0,30455.0,0.04306395]
[1688311868361,0.03707914,30456.0,30455.0,0.04306395]
[1688311868564,0.05677914,30456.0,30455.0,0.04306395]
[1688311868861,0.06337914,30456.0,30455.0,0.04306395]
[1688311869459,0.10341963,30456.0,30455.0,0.04306395]
[1688311869763,0.44831963,30456.0,30455.0,0.01476395]
[1688311869970,0.44831963,30456.0,30453.0,0.00049251]
[1688311870268,0.3608,30454.0,30453.0,0.00049251]
[1688311870467,0.42054249,30454.0,30453.0,0.00049251]
[1688311870666,0.45762163,30454.0,30453.0,0.00049251]
[1688311870964,0.07859194,30454.0,30453.0,0.00049251]
[1688311871759,0.09682163,30454.0,30453.0,0.00049251]
[1688311872166,0.07859194,30454.0,30453.0,0.00049251]
[1688311872370,0.05974249,30454.0,30453.0,0.36619451]
[1688311872558,0.049255,30455.0,30453.0,0.36619451]
[1688311872559,0.02686286,30455.0,30453.0,0.36619451]
[1688311872754,0.02686286,30455.0,30454.0,0.03707914]
[1688311872963,0.02686286,30455.0,30454.0,0.05678114]
[1688311873175,0.063942,30455.0,30454.0,0.019702]
[1688311873363,0.02686286,30455.0,30454.0,0.01884945]
[1688311873664,0.02686286,30455.0,30453.0,0.34649251]
[1688311873869,0.02686286,30455.0,30453.0,0.02019451]
[1688311874064,0.02686286,30455.0,30454.0,0.03793169]
[1688311874668,0.02686286,30455.0,30454.0,0.05678114]
[1688311875584,0.059106,30456.0,30454.0,0.40348114]
[1688311875759,0.059106,30456.0,30455.0,0.03707914]
[1688311876073,0.059106,30456.0,30455.0,0.01884945]
[1688311876861,0.059106,30456.0,30455.0,0.03707914]
[1688311877265,0.07795545,30456.0,30454.0,0.366402]
[1688311877488,0.405806,30456.0,30455.0,0.00516885]
[1688311877769,0.405806,30456.0,30453.0,0.00049251]
[1688311877974,0.3608,30454.0,30453.0,0.00049251]
[1688311878267,0.380502,30454.0,30453.0,0.00049251]
[1688311878462,0.019702,30454.0,30453.0,0.02019451]
[1688311878770,0.019702,30454.0,30453.0,0.36619451]
[1688311879073,0.019702,30454.0,30453.0,0.3844242]
[1688311879366,0.019702,30454.0,30453.0,0.38504396]
[1688311879767,0.019702,30454.0,30453.0,0.00049251]
[1688311879967,0.366402,30454.0,30447.0,0.019706]
[1688311880262,0.019704,30451.0,30448.0,0.00501669]
[1688311880463,0.019705,30449.0,30448.0,0.00501669]
[1688311880664,0.019705,30449.0,30448.0,0.02472169]
[1688311880872,0.03855445,30449.0,30448.0,0.02472169]
[1688311881068,0.03855445,30449.0,30448.0,0.04295138]
[1688311881371,0.03855445,30449.0,30448.0,0.02472169]
[1688311881771,0.05678414,30449.0,30448.0,0.02472169]
[1688311882069,0.05678414,30449.0,30448.0,0.0266012]
[1688311882269,0.03855445,30449.0,30448.0,0.0266012]
[1688311882673,0.03855445,30449.0,30448.0,0.04483089]
[1688311882860,0.03855445,30449.0,30448.0,0.0266012]
[1688311884068,0.05678414,30449.0,30448.0,0.0266012]
[1688311884264,0.03855445,30449.0,30448.0,0.0068962]
[1688311884469,0.03855445,30449.0,30448.0,0.0266012]
[1688311884667,0.019705,30449.0,30448.0,0.0266012]
[1688311884862,0.019705,30449.0,30448.0,0.04483089]
[1688311885067,0.019705,30449.0,30448.0,0.04545065]
[1688311885870,0.019705,30449.0,30448.0,0.06368034]
[1688311886076,0.049263,30450.0,30449.0,0.01884945]
[1688311886280,0.05960864,30452.0,30449.0,0.019705]
[1688311886573,0.05960864,30452.0,30451.0,0.3467]
[1688311886766,0.05960864,30452.0,30451.0,0.366403]
[1688311886970,0.05960864,30452.0,30451.0,0.3538363]
[1688311887171,0.05960864,30452.0,30451.0,0.37268575]
[1688311887465,0.05960864,30452.0,30451.0,0.02598575]
[1688311887671,0.05960864,30452.0,30451.0,0.0071363]
[1688311888666,0.05960864,30452.0,30451.0,0.02598575]
[1688311888866,0.05960864,30452.0,30451.0,0.04568875]
[1688311889574,0.05960864,30452.0,30451.0,0.0071363]
[1688311890075,0.05960864,30452.0,30451.0,0.02598575]
[1688311890458,0.05960864,30452.0,30451.0,0.04421544]
[1688311890662,0.05960864,30452.0,30451.0,0.02598575]
[1688311891062,0.05960864,30452.0,30451.0,0.04568875]
[1688311892660,0.07845809,30452.0,30451.0,0.04568875]
[1688311892968,0.07845809,30452.0,30451.0,0.0071363]
[1688311893171,0.40630864,30452.0,30451.0,0.00535373]
[1688311893473,0.40630864,30452.0,30449.0,1.019705]
[1688311893670,0.40630864,30452.0,30450.0,0.0052559]
[1688311893872,0.03707914,30451.0,30450.0,0.0052559]
[1688311894075,0.05678214,30451.0,30450.0,0.0052559]
[1688311894373,0.41758214,30451.0,30450.0,0.0052559]
[1688311894973,0.03707914,30450.0,30445.0,0.04622204]
[1688311895268,0.3608,30448.0,30446.0,0.00394236]
[1688311895573,0.09365594,30447.0,30446.0,0.00394236]
[1688311898774,0.30325594,30447.0,30446.0,0.00394236]
[1688311898969,0.30325594,30447.0,30445.0,0.00049264]
[1688311899169,0.24737914,30446.0,30445.0,0.00049264]
[1688311899373,0.26708614,30446.0,30445.0,0.00049264]
[1688311900163,0.24885645,30446.0,30445.0,0.00049264]
[1688311900880,0.24885645,30446.0,30445.0,0.004548]
[1688311901270,0.26708614,30446.0,30445.0,0.10210601]
[1688311901668,0.24885645,30446.0,30445.0,0.10210601]
[1688311901873,0.230007,30446.0,30445.0,0.10210601]
[1688311902080,0.230007,30446.0,30445.0,0.12181301]
[1688311902471,0.24885645,30446.0,30445.0,0.12181301]
[1688311902670,0.14784675,30446.0,30445.0,0.12181301]
[1688311902871,0.16755375,30446.0,30445.0,0.12181301]
[1688311903074,0.1864032,30446.0,30445.0,0.12181301]
[1688311903274,0.1864032,30446.0,30445.0,0.13306897]
[1688311903674,0.1864032,30446.0,30445.0,0.3504651]
[1688311904084,0.228507,30446.0,30445.0,0.3504651]
[1688311904673,0.24735645,30446.0,30445.0,0.3504651]
[1688311905277,0.26558614,30446.0,30445.0,0.16734887]
[1688311905570,0.26558614,30446.0,30445.0,0.384745]
[1688311906383,0.26558614,30446.0,30445.0,0.22414608]
[1688311907098,0.62638614,30446.0,30445.0,0.00674995]
[1688311907391,0.62638614,30446.0,30445.0,0.00877974]
[1688311907975,0.63298614,30446.0,30445.0,0.00877974]
[1688311908393,0.05,30443.0,30441.0,0.15788002]
[1688311908581,0.589309,30442.0,30441.0,0.13107092]
[1688311908887,0.62638814,30442.0,30440.0,0.13107092]
[1688311909180,0.23001,30441.0,30440.0,0.13107092]
[1688311909380,0.23001,30441.0,30439.0,0.13107092]
[1688311909576,0.26499014,30440.0,30439.0,0.13107092]
[1688311911483,0.26499014,30440.0,30438.0,0.00018427]
[1688311911484,0.26499014,30440.0,30438.0,0.13125519]
[1688311911691,0.60747914,30439.0,30438.0,0.13125519]
[1688311911880,0.62719014,30439.0,30438.0,0.13125519]
[1688311912189,0.62719014,30439.0,30438.0,0.34870001]
[1688311912381,0.62719014,30439.0,30438.0,0.13125519]
[1688311912582,0.62719014,30439.0,30438.0,0.00018427]
[1688311914996,0.74299014,30439.0,30438.0,0.00018427]
[1688311915398,0.380511,30439.0,30438.0,0.00018427]
[1688311915582,0.019711,30439.0,30438.0,0.01989627]
[1688311915788,0.019711,30439.0,30438.0,0.02927888]
[1688311916092,0.380511,30439.0,30438.0,0.02927888]
[1688311916487,0.380511,30439.0,30438.0,0.06635802]
[1688311916793,0.380511,30439.0,30438.0,0.04812833]
[1688311917194,0.230011,30440.0,30439.0,0.06574065]
[1688311917386,0.230011,30440.0,30439.0,0.1043011]
[1688311917693,0.230011,30440.0,30439.0,0.13189393]
[1688311918590,0.230011,30440.0,30439.0,0.11366424]
[1688311919190,0.230011,30440.0,30439.0,0.13189393]
[1688311920098,0.230011,30440.0,30439.0,0.07510379]
[1688311920099,0.590811,30440.0,30439.0,0.07510379]
[1688311920599,0.62789014,30440.0,30439.0,0.09481479]
[1688311922505,0.590811,30440.0,30439.0,0.09481479]
[1688311922888,0.230011,30440.0,30439.0,0.09481479]
[1688311923085,0.230011,30440.0,30439.0,0.13189393]
[1688311923400,0.230011,30440.0,30439.0,0.11366424]
[1688311923996,0.230011,30440.0,30439.0,0.09481479]
[1688311924393,0.230011,30440.0,30439.0,0.11366424]
[1688311924700,0.230011,30440.0,30439.0,0.13189393]
[1688311926095,0.230011,30440.0,30439.0,0.07510379]
[1688311926598,0.26709014,30440.0,30439.0,0.07510379]
[1688311926797,0.230011,30440.0,30439.0,0.09481479]
[1688311927196,0.230011,30440.0,30439.0,0.11366424]
[1688311927707,0.24824069,30440.0,30439.0,0.09481479]
[1688311927899,0.230011,30440.0,30439.0,0.09481479]
[1688311928608,0.02020175,30444.0,30439.0,0.45561479]
[1688311928911,0.230006,30447.0,30443.0,0.5698]
[1688311929101,0.230006,30447.0,30444.0,0.019708]
[1688311929306,0.230006,30447.0,30445.0,0.03707914]
[1688311929605,0.24885545,30447.0,30446.0,0.019707]
[1688311929796,0.227906,30447.0,30446.0,0.05678614]
[1688311930302,0.227906,30447.0,30446.0,0.03855645]
[1688311930498,0.227906,30447.0,30446.0,0.05678614]
[1688311930893,0.065684,30449.0,30446.0,0.62758614]
[1688311931093,0.00049266,30450.0,30448.0,0.2093]
[1688311931304,0.267903,30456.0,30449.0,0.229805]
[1688311931502,0.267903,30456.0,30452.0,0.2103]
[1688311931695,0.267903,30456.0,30453.0,0.05678114]
[1688311931898,0.267903,30456.0,30453.0,0.019702]
[1688311932204,0.267903,30456.0,30454.0,0.03707914]
[1688311932405,0.228502,30456.0,30455.0,0.019702]
[1688311932708,0.00049253,30458.0,30455.0,0.22852969]
[1688311932898,0.00049253,30458.0,30455.0,0.2103]
[1688311933202,0.00049253,30458.0,30456.0,0.03707914]
[1688311933504,0.00049253,30458.0,30455.0,0.2103]
[1688311933703,0.00049253,30458.0,30456.0,0.03707914]
[1688311933903,0.00049253,30458.0,30455.0,0.2103]
[1688311934305,0.00049253,30458.0,30457.0,0.2103]
[1688311934500,0.00049253,30458.0,30457.0,1.2103]
[1688311934705,0.2103,30463.0,30457.0,1.2103]
[1688311934898,0.2103,30463.0,30459.0,0.5711]
[1688311935121,0.49117216,30466.0,30462.0,0.5711]
[1688311935304,0.28157216,30466.0,30465.0,0.2103]
[1688311935606,0.02636183,30466.0,30465.0,0.2103]
[1688311935795,0.2103,30466.0,30465.0,0.03707914]
[1688311936194,0.22103034,30466.0,30465.0,0.03707914]
[1688311936604,0.01073034,30466.0,30465.0,0.24707914]
[1688311936993,0.00049235,30469.0,30465.0,0.60787914]
[1688311937203,0.01073013,30468.0,30467.0,0.2093]
[1688311937400,0.01073013,30468.0,30467.0,0.26369551]
[1688311937595,0.01073013,30468.0,30467.0,0.30077465]
[1688311937801,0.01073013,30468.0,30467.0,0.24637914]
[1688311938606,0.0146524,30468.0,30467.0,0.24637914]
[1688311939898,0.0146524,30468.0,30465.0,0.3608]
[1688311940108,0.0146524,30468.0,30464.0,2.0]
[1688311940405,0.03707914,30467.0,30464.0,0.02645498]
[1688311940611,0.0146524,30468.0,30464.0,0.02645498]
[1688311940811,0.01187736,30466.0,30462.0,0.00049235]
[1688311941011,0.2103,30464.0,30463.0,0.03707914]
[1688311941205,0.2103,30464.0,30462.0,0.00049235]
[1688311941206,0.22914945,30464.0,30462.0,0.00049235]
[1688311941412,0.00049235,30469.0,30465.0,2.0]
[1688311941598,0.00049235,30469.0,30467.0,0.209]
[1688311941803,0.00049235,30469.0,30468.0,0.21]
[1688311942005,0.00049235,30469.0,30468.0,0.24707914]
[1688311942403,0.00049235,30469.0,30468.0,0.60787914]
[1688311942908,0.0657,30476.0,30470.0,1.0]
[1688311943109,0.0657,30476.0,30473.0,0.2103]
[1688311943316,0.01884945,30475.0,30473.0,0.2103]
[1688311943513,0.01884945,30475.0,30474.0,0.01822969]
[1688311943714,0.0657,30476.0,30473.0,0.2103]
[1688311944313,0.0657,30476.0,30474.0,0.03707914]
[1688311944626,0.0657,30476.0,30475.0,0.03707914]
[1688311944822,0.00049221,30478.0,30475.0,0.58894945]
[1688311945035,0.00049221,30478.0,30477.0,0.2103]
[1688311945228,0.00049221,30478.0,30477.0,0.24737914]
[1688311946318,1.03389125,30484.0,30481.0,1.0]
[1688311946319,0.2083825,30484.0,30481.0,1.0]
[1688311946523,0.2083825,30484.0,30483.0,0.3608]
[1688311947021,0.2083825,30484.0,30483.0,0.39787914]
[1688311947225,0.2083825,30484.0,30478.0,1.0]
[1688311947429,0.2096,30481.0,30478.0,1.00049211]
[1688311947617,0.2096,30481.0,30479.0,0.03707914]
[1688311947823,0.2096,30481.0,30479.0,0.01884945]
[1688311948028,0.2096,30481.0,30479.0,0.03707914]
[1688311948230,0.2096,30481.0,30478.0,1.00049211]
[1688311948231,0.2096,30480.0,30478.0,1.00049211]
[1688311948428,0.5711,30482.0,30478.0,1.00049211]
[1688311948626,0.03707914,30481.0,30478.0,1.00049211]
[1688311948832,0.5711,30482.0,30478.0,1.00049211]
[1688311949127,0.3608,30479.0,30478.0,0.00049211]
[1688311949730,0.3608,30479.0,30471.0,0.3327]
[1688311950034,0.2082,30473.0,30471.0,0.3327]
[1688311950735,0.00049226,30475.0,30472.0,0.24737914]
[1688311950925,0.00049226,30475.0,30472.0,0.2103]
[1688311951125,0.00049226,30475.0,30473.0,0.03707914]
[1688311951329,0.00049226,30475.0,30474.0,1.209]
[1688311951736,0.00049226,30475.0,30474.0,1.24607914]
[1688311952632,0.00049226,30475.0,30474.0,1.24737914]
[1688311952832,0.00049226,30475.0,30474.0,1.24637914]
[1688311953436,0.00049226,30475.0,30474.0,1.60717914]
[1688311954023,0.00049226,30475.0,30474.0,1.0]
[1688311954242,0.21079226,30475.0,30474.0,1.0]
[1688311954541,0.22964171,30475.0,30470.0,1.2093]
[1688311954728,0.21079226,30475.0,30471.0,0.01822969]
[1688311954928,0.21079226,30475.0,30472.0,0.01884945]
[1688311955126,0.21079226,30475.0,30473.0,0.22682969]
[1688311955127,0.00049226,30475.0,30473.0,0.22682969]
[1688311955320,0.00049226,30475.0,30474.0,0.01884945]
[1688311955526,0.01934171,30475.0,30473.0,0.2086]
[1688311956125,0.01884945,30474.0,30473.0,0.2086]
[1688311956539,0.00049226,30475.0,30473.0,0.2086]
[1688311956836,0.00049226,30475.0,30474.0,0.01822969]
[1688311957034,0.00049226,30475.0,30474.0,0.24737914]
[1688311960643,0.00049226,30475.0,30474.0,0.60817914]
[1688311961734,0.00049226,30475.0,30474.0,0.03707914]
[1688311961933,0.01934171,30475.0,30472.0,0.2103]
[1688311962134,0.00049226,30475.0,30472.0,0.22914945]
[1688311962329,0.00049226,30475.0,30472.0,0.2103]
[1688311962531,0.00049226,30475.0,30473.0,0.01822969]
[1688311962743,0.01884945,30474.0,30472.0,0.2103]
[1688311963043,0.01884945,30474.0,30469.0,0.00049226]
[1688311963044,0.22999,30473.0,30469.0,0.00049226]
[1688311963251,0.227892,30470.0,30469.0,0.00049226]
[1688311963431,0.227892,30470.0,30469.0,0.00032457]
[1688311963942,0.26557114,30470.0,30469.0,0.00032457]
[1688311964135,0.24734145,30470.0,30469.0,0.00032457]
[1688311964349,0.26557114,30470.0,30469.0,0.00032457]
[1688311965738,0.419877,30472.0,30469.0,0.22817402]
[1688311965932,0.419877,30472.0,30471.0,0.2103]
[1688311966344,0.43178521,30472.0,30471.0,0.24737914]
[1688311966738,0.07098521,30472.0,30471.0,0.24737914]
[1688311967845,0.07098521,30472.0,30469.0,0.00032457]
[1688311968040,0.07098521,30472.0,30471.0,0.209]
[1688311968346,0.10806435,30472.0,30471.0,0.209]
[1688311968837,0.08983466,30472.0,30471.0,0.209]
[1688311969038,0.10806435,30472.0,30471.0,0.209]
[1688311970640,0.31626435,30472.0,30469.0,0.00032457]
[1688311970943,0.019692,30470.0,30469.0,0.00032457]
[1688311971336,0.06962362,30470.0,30469.0,0.00032457]
[1688311971844,0.05139393,30470.0,30469.0,0.00032457]
[1688311972143,0.06962362,30470.0,30469.0,0.00032457]
[1688311972842,0.06962362,30470.0,30469.0,0.20962457]
[1688311973940,0.07622362,30470.0,30465.0,0.02650348]
[1688311974248,0.019695,30465.0,30462.0,1.0]
[1688311974460,0.019695,30465.0,30459.0,0.05]
[1688311974461,0.019696,30463.0,30459.0,0.019699]
[1688311974638,0.03854745,30462.0,30460.0,0.23667928]
[1688311974835,0.03854745,30462.0,30461.0,0.019698]
[1688311975049,0.03854745,30462.0,30460.0,0.2103]
[1688311975641,0.03707914,30461.0,30460.0,0.2103]
[1688311975841,0.03707914,30461.0,30459.0,0.02565347]
[1688311975842,0.41757714,30461.0,30459.0,0.02565347]
[1688311976138,0.019699,30459.0,30458.0,0.00049242]
[1688311976548,0.03854845,30459.0,30458.0,0.00049242]
[1688311976741,0.05677814,30459.0,30458.0,0.00049242]
[1688311977439,0.26637814,30459.0,30458.0,0.00049242]
[1688311981348,0.01884945,30458.0,30454.0,0.2103]
[1688311981555,0.3608,30455.0,30454.0,0.2103]
[1688311981847,0.3608,30455.0,30452.0,1.09106583]
[1688311981848,0.60815145,30455.0,30452.0,1.09106583]
[1688311982154,0.60815145,30455.0,30453.0,0.209]
[1688311982155,0.380502,30455.0,30453.0,0.209]
[1688311982355,0.380502,30455.0,30453.0,0.2939036]
[1688311983457,0.019702,30455.0,30453.0,0.2939036]
[1688311984857,0.05959855,30457.0,30454.0,0.21]
[1688311985045,0.05959855,30457.0,30456.0,0.2103]
[1688311985755,0.09667769,30457.0,30456.0,0.2103]
[1688311986251,0.66627769,30457.0,30453.0,0.2738006]
[1688311986443,0.03707914,30456.0,30453.0,0.2738006]
[1688311986754,0.019701,30455.0,30453.0,0.2738006]
[1688311986944,0.05678014,30455.0,30453.0,0.2738006]
[1688311987258,0.019701,30455.0,30453.0,0.2738006]
[1688311987650,0.019701,30455.0,30453.0,0.2935026]
[1688311988058,0.01884945,30454.0,30453.0,0.2935026]
[1688311988252,0.03855145,30454.0,30453.0,0.2738006]
[1688311988459,0.39935145,30454.0,30453.0,0.2738006]
[1688311988754,0.41758114,30454.0,30453.0,0.2738006]
[1688311989167,0.41758114,30454.0,30453.0,0.0652006]
[1688311989349,0.62718114,30454.0,30453.0,0.0652006]
[1688311990454,0.62718114,30454.0,30451.0,0.02019655]
[1688311990655,0.03707914,30453.0,30451.0,0.02019655]
[1688311990954,0.019704,30452.0,30451.0,0.02019655]
[1688311991258,0.03855345,30452.0,30451.0,0.02019655]
[1688311992259,0.03855345,30452.0,30451.0,0.23049655]
[1688311992454,0.019704,30452.0,30451.0,0.23049655]
[1688311992655,0.059111,30455.0,30451.0,0.59129655]
[1688311992860,0.059111,30455.0,30454.0,0.209]
[1688311993049,0.019701,30456.0,30454.0,0.228702]
[1688311993248,0.00049255,30457.0,30455.0,0.26439551]
[1688311993561,0.00049255,30457.0,30456.0,0.019701]
[1688311994152,0.02019255,30457.0,30456.0,0.019701]
[1688311994359,0.02019255,30457.0,30456.0,0.230001]
[1688311995259,0.00049255,30457.0,30456.0,0.28439651]
[1688311995864,0.00049255,30457.0,30456.0,0.230001]
[1688311997160,0.7958,30462.0,30458.0,1.0]
[1688311997464,0.019697,30464.0,30461.0,0.209]
[1688311997654,0.019697,30464.0,30462.0,0.019697]
[1688311997856,0.065647,30467.0,30463.0,1.2103]
[1688311998165,0.065647,30467.0,30466.0,0.228994]
[1688311999657,0.08449645,30467.0,30466.0,0.228994]
[1688312000053,0.065647,30467.0,30466.0,0.228994]
[1688312000663,0.00049237,30468.0,30467.0,1.0]
[1688312000859,0.059066,30475.0,30470.0,1.0]
[1688312001163,0.059066,30475.0,30473.0,0.01969]
[1688312002662,0.00049222,30477.0,30474.0,0.2086]
[1688312002849,0.00049222,30477.0,30473.0,0.01969]
[1688312003054,0.00049222,30477.0,30475.0,1.0]
[1688312003260,0.00049222,30477.0,30476.0,0.019688]
[1688312004863,0.00049222,30477.0,30476.0,1.019688]
[1688312005164,2.1243825,30484.0,30480.0,1.0]
[1688312005165,0.1561603,30483.0,30480.0,1.0]
[1688312005354,0.1561603,30483.0,30482.0,0.2101]
[1688312006156,0.0971083,30483.0,30482.0,0.2101]
[1688312006660,0.0971083,30483.0,30482.0,0.2103]
[1688312007372,0.0971083,30483.0,30482.0,0.5721]
[1688312008061,0.0971083,30483.0,30482.0,0.2113]
[1688312008251,0.0971083,30483.0,30482.0,0.2103]
[1688312008455,0.0198655,30484.0,30482.0,0.2103]
[1688312008661,0.0198655,30484.0,30481.0,1.229985]
[1688312008662,0.0198655,30484.0,30483.0,0.2101]
[1688312010067,0.03871495,30484.0,30483.0,0.2101]
[1688312011365,0.05286999,30484.0,30483.0,0.2101]
[1688312011966,0.01433754,30484.0,30483.0,0.2101]
[1688312013960,0.03402054,30484.0,30483.0,0.2101]
[1688312014177,0.03500531,30484.0,30483.0,0.2101]
[1688312014563,0.03500531,30484.0,30483.0,0.2093]
[1688312014765,0.05385476,30484.0,30483.0,0.2093]
[1688312014973,0.26345476,30484.0,30481.0,1.0]
[1688312015262,0.590784,30482.0,30481.0,1.0]
[1688312015669,0.60502415,30482.0,30479.0,0.00049209]
[1688312015866,0.229285,30480.0,30479.0,0.00049209]
[1688312016279,0.28060416,30480.0,30479.0,0.00049209]
[1688312017475,0.03707914,30479.0,30472.0,0.2101]
[1688312017663,0.5711,30476.0,30472.0,0.2101]
[1688312017979,0.05676714,30475.0,30472.0,0.2101]
[1688312018167,0.0267567,30475.0,30472.0,0.2101]
[1688312018773,0.04560615,30475.0,30472.0,0.2101]
[1688312018975,0.04498639,30475.0,30472.0,0.2101]
[1688312019274,0.01884945,30474.0,30472.0,0.2101]
[1688312019478,0.01969,30473.0,30472.0,0.22979]
[1688312019678,0.00706841,30473.0,30472.0,0.22829]
[1688312019883,0.00706841,30473.0,30472.0,0.43799]
[1688312020094,0.02017922,30477.0,30475.0,1.0]
[1688312020274,0.02017922,30477.0,30476.0,0.019688]
[1688312020473,0.00049222,30477.0,30476.0,0.019688]
[1688312021378,0.019684,30483.0,30481.0,1.0]
[1688312021575,0.019684,30483.0,30482.0,0.2103]
[1688312022368,0.03458332,30483.0,30482.0,0.2103]
[1688312022882,0.24488332,30483.0,30481.0,1.0]
[1688312023077,0.2103,30482.0,30481.0,1.0]
[1688312023271,0.28196229,30482.0,30481.0,1.0]
[1688312023477,0.28196229,30482.0,30479.0,0.00049209]
[1688312023677,0.2103,30480.0,30479.0,0.00049209]
[1688312023881,0.26706514,30480.0,30479.0,0.00049209]
[1688312024072,0.27639988,30480.0,30479.0,0.00049209]
[1688312025375,0.25817019,30480.0,30479.0,0.00049209]
[1688312025683,0.02902074,30480.0,30479.0,0.21049209]
[1688312025879,0.02902074,30480.0,30479.0,0.23017809]
[1688312025880,0.00933474,30480.0,30479.0,0.23017809]
[1688312026069,0.259511,30483.0,30479.0,0.23017809]
[1688312026268,0.0118536,30480.0,30479.0,0.23017809]
[1688312026673,0.259511,30483.0,30479.0,0.23017809]
[1688312026870,0.0118535,30480.0,30479.0,0.23017809]
[1688312027079,0.03853345,30482.0,30479.0,0.23017809]
[1688312027274,0.01185342,30480.0,30479.0,0.23017809]
[1688312027582,0.019685,30481.0,30479.0,0.23017809]
[1688312027778,0.01185334,30480.0,30479.0,0.23017809]
[1688312028478,0.05038879,30480.0,30479.0,0.21049209]
[1688312028688,0.25858879,30480.0,30479.0,0.00049209]
[1688312029089,0.27681848,30480.0,30479.0,0.00049209]
[1688312030177,0.01185334,30480.0,30479.0,0.21079209]
[1688312030384,0.01185334,30480.0,30479.0,0.23047809]
[1688312030679,0.049213,30482.0,30479.0,0.23047809]
[1688312030891,0.01132697,30480.0,30479.0,0.02017809]
[1688312031095,0.049213,30482.0,30479.0,0.23047809]
[1688312031385,0.059058,30483.0,30481.0,0.2086]
[1688312031576,0.019684,30482.0,30479.0,0.02017809]
[1688312031778,0.019684,30482.0,30481.0,0.2103]
[1688312032686,0.4200315,30484.0,30481.0,0.2103]
[1688312032987,0.4200315,30484.0,30483.0,0.209]
[1688312033591,0.43826119,30484.0,30483.0,0.209]
[1688312033885,0.45711064,30484.0,30483.0,0.209]
[1688312034579,0.45711064,30484.0,30482.0,0.21]
[1688312034888,0.05676214,30483.0,30482.0,0.21]
[1688312036384,0.019683,30483.0,30482.0,0.21]
[1688312036576,0.019683,30483.0,30482.0,0.229684]
[1688312036980,0.019683,30483.0,30482.0,0.21]
[1688312038680,0.3609825,30484.0,30482.0,0.21]
[1688312038894,0.3609825,30484.0,30483.0,0.2086]
[1688312039094,0.3806655,30484.0,30483.0,0.2086]
[1688312039896,0.39951495,30484.0,30483.0,0.2086]
[1688312040702,0.3806655,30484.0,30483.0,0.2086]
[1688312041288,0.39425187,30484.0,30483.0,0.2086]
[1688312042098,0.43133101,30484.0,30482.0,0.2093]
[1688312042298,0.39425187,30484.0,30482.0,0.2093]
[1688312042500,0.05676214,30483.0,30482.0,0.2093]
[1688312042706,0.05676214,30483.0,30479.0,0.00049209]
[1688312042707,0.26706214,30483.0,30479.0,0.00049209]
[1688312042904,0.3608,30481.0,30479.0,0.00049209]
[1688312043206,0.019685,30480.0,30479.0,0.00049209]
[1688312043500,0.01822969,30479.0,30472.0,2.01969]
[1688312043710,0.019688,30476.0,30475.0,0.21]
[1688312044095,0.03853745,30476.0,30475.0,0.21]
[1688312045092,0.24855745,30477.0,30475.0,0.22884945]
[1688312045293,0.019688,30476.0,30475.0,0.22884945]
[1688312045608,0.06687657,30478.0,30475.0,0.589488]
[1688312045811,0.06687657,30478.0,30475.0,0.380488]
[1688312046003,0.06687657,30478.0,30475.0,0.44573369]
[1688312046309,0.08510626,30478.0,30476.0,0.01884945]
[1688312046521,0.06687657,30478.0,30475.0,0.380488]
[1688312047814,0.019688,30476.0,30475.0,0.2093]
[1688312048413,0.03853745,30476.0,30475.0,0.2093]
[1688312048718,0.05676714,30476.0,30475.0,0.2093]
[1688312049018,0.0240928,30476.0,30475.0,0.2093]
[1688312050114,0.04232249,30476.0,30475.0,0.2093]
[1688312050312,0.0240928,30476.0,30475.0,0.2093]
[1688312050715,0.0044048,30476.0,30475.0,0.31162483]
[1688312051216,0.019687,30477.0,30475.0,0.31162483]
[1688312051711,0.00440432,30476.0,30475.0,0.31162483]
[1688312052111,0.07729269,30478.0,30475.0,0.24637914]
[1688312052314,0.00440417,30476.0,30475.0,0.2093]
[1688312052618,0.02409217,30476.0,30475.0,0.2093]
[1688312052806,0.04232186,30476.0,30475.0,0.2093]
[1688312053311,0.02409217,30476.0,30475.0,0.2093]
[1688312053914,0.04232186,30476.0,30475.0,0.2093]
[1688312054808,0.36762186,30476.0,30472.0,0.0004922]
[1688312055115,0.22929,30473.0,30472.0,0.0004922]
[1688312055513,0.23369353,30473.0,30472.0,0.0004922]
[1688312055721,0.25192322,30473.0,30472.0,0.0004922]
[1688312056705,0.02409353,30473.0,30472.0,0.0004922]
[1688312056906,0.00440353,30473.0,30472.0,0.2302822]
[1688312057211,0.00440353,30473.0,30472.0,1.26736134]
[1688312058303,0.05907,30475.0,30472.0,1.26736134]
[1688312058612,0.07729969,30475.0,30474.0,0.229989]
[1688312058818,0.07729969,30475.0,30474.0,0.2103]
[1688312059512,0.07729969,30475.0,30472.0,1.0004922]
[1688312059513,0.29074223,30475.0,30472.0,0.0004922]
[1688312059718,0.01822969,30474.0,30472.0,0.0004922]
[1688312060022,0.22999,30473.0,30472.0,0.0004922]
[1688312060227,0.05,30472.0,30467.0,0.29353769]
[1688312060519,0.380491,30471.0,30467.0,0.228292]
[1688312060714,0.380491,30471.0,30468.0,0.01822969]
[1688312060903,0.39872069,30471.0,30468.0,0.019693]
[1688312061407,0.01822969,30470.0,30468.0,0.019693]
[1688312061603,0.019692,30469.0,30468.0,0.019693]
[1688312063508,0.019692,30469.0,30467.0,0.2086]
[1688312063713,0.019692,30469.0,30467.0,0.22682969]
[1688312063917,0.03792169,30469.0,30467.0,0.2086]